fUSD/lending_fUSD_20260318
["ID","MTS","AMOUNT","RATE_DAILY","PERIOD"]
[408520415,1773817449549,355.9,0.00022735,120]
[408520416,1773817449956,711.81,0.00024122,120]
[408520417,1773817450366,1067.71,0.0002551,120]
[408520418,1773817450754,1423.62,0.00026897,120]
[408520419,1773817451164,1779.52,0.00028285,120]
[408520420,1773817451717,2135.42,0.00029672,120]
[408520421,1773817471993,425.0,0.0003013,120]
[408520422,1773817472765,1949.0,0.0003013,120]
[408520423,1773817473576,1614.0,0.0003013,120]
[408520424,1773817474869,244.0,0.0003013,120]
[408520425,1773817476952,156.00181675,0.0003013,120]
[408520426,1773817484359,315.14,0.00022739,120]
[408520427,1773817484741,630.27,0.00024127,120]
[408520428,1773817485267,945.41,0.00025515,120]
[408520429,1773817485506,1260.55,0.00026903,120]
[408520430,1773817485898,1575.68,0.0002829,120]
[408520431,1773817486268,1890.82,0.00029678,120]
[408520432,1773817518883,279.04,0.00022732,120]
[408520433,1773817519250,558.08,0.00024119,120]
[408520434,1773817519327,1000.0,0.00030137,120]
[408520435,1773817520064,837.12,0.00025506,120]
[408520436,1773817520111,1116.16,0.00026894,120]
[408520437,1773817520417,1395.2,0.00028281,120]
[408520438,1773817520811,1674.24,0.00029668,120]
[408520439,1773817531479,910.0,0.0003013,120]
[408520440,1773817532279,581.0,0.0003013,120]
[408520441,1773817550342,247.08,0.00022728,120]
[408520442,1773817550709,494.15,0.00024116,120]
[408520443,1773817551088,741.23,0.00025503,120]
[408520444,1773817552003,988.31,0.0002689,120]
[408520445,1773817552059,1235.38,0.00028277,120]
[408520446,1773817552376,1482.46,0.00029664,120]
[408520447,1773817563302,1000.0,0.00030137,120]
[408520448,1773817586880,218.78,0.00022764,120]
[408520449,1773817587050,1613.0,0.0003013,120]
[408520450,1773817587288,437.55,0.00024154,120]
[408520451,1773817587697,656.33,0.00025543,120]
[408520452,1773817588067,875.1,0.00026932,120]
[408520453,1773817588437,1093.88,0.00028322,120]
[408520454,1773817588879,1312.65,0.00029711,120]
[408520455,1773817598681,500.0,0.0003013,120]
[408520456,1773817604677,1000.0,0.00030137,120]
[408520457,1773817618981,193.72,0.00022763,120]
[408520458,1773817619364,387.43,0.00024152,120]
[408520459,1773817619745,581.15,0.00025542,120]
[408520460,1773817620116,774.86,0.00026931,120]
[408520461,1773817620539,968.58,0.0002832,120]
[408520462,1773817621403,1162.29,0.0002971,120]
[408520463,1773817650165,902.81731487,0.00030137,120]
[408520464,1773817651511,377.37741007,0.0003013,120]
[408520465,1773817678127,171.53,0.00022764,120]
[408520466,1773817678392,343.05,0.00024153,120]
[408520467,1773817678763,514.58,0.00025543,120]
[408520468,1773817679122,686.1,0.00026932,120]
[408520469,1773817679548,857.63,0.00028321,120]
[408520470,1773817679940,1029.16,0.00029711,120]
[408520471,1773817712585,151.88,0.0002283,120]
[408520472,1773817712981,303.76,0.00024223,120]
[408520473,1773817713365,455.64,0.00025617,120]
[408520474,1773817713862,607.51,0.0002701,120]
[408520475,1773817714145,759.39,0.00028403,120]
[408520476,1773817714518,911.27,0.00029797,120]
[408520477,1773817746117,-166.12928053,0.00011407,2]
[408520478,1773817746141,-87.56330342,0.00011507,2]
[408520479,1773817771665,150.0,0.00022822,120]
[408520480,1773817772038,268.96,0.00024215,120]
[408520481,1773817772559,403.44,0.00025608,120]
[408520482,1773817772929,537.93,0.00027001,120]
[408520483,1773817773176,672.41,0.00028394,120]
[408520484,1773817773561,806.89,0.00029787,120]
[408520489,1773817800723,150.0,0.00018812,120]
[408520490,1773817801532,241.90905061,0.00018812,120]
[408520491,1773817805183,150.0,0.00022831,120]
[408520492,1773817805581,237.99,0.00024224,120]
[408520493,1773817805974,356.98,0.00025618,120]
[408520494,1773817806351,475.97,0.00027011,120]
[408520495,1773817806713,594.96,0.00028405,120]
[408520496,1773817807113,713.96,0.00029798,120]
[408520497,1773817825014,-1200.0,0.00011406,2]
[408520498,1773817825042,-243.0,0.00011406,2]
[408520499,1773817829598,-4910.87729654,0.00011407,2]
[408520500,1773817829715,-10000.01,0.00011407,2]
[408520501,1773817829822,-10000.01,0.00011407,2]
[408520502,1773817831445,-2333.09619823,0.00011407,2]
[408520503,1773817831474,-2252.04068095,0.00011407,2]
[408520504,1773817831514,-829.73624164,0.00011407,2]
[408520518,1773817832286,-412.43669658,0.00011507,2]
[408520519,1773817832296,-1454.88,0.00011507,2]
[408520520,1773817832306,-176.99,0.00012017,2]
[408520521,1773817832318,-309.34854383,0.000125,2]
[408520522,1773817832330,-1680.0,0.00012547,2]
[408520523,1773817832342,-262.93,0.00013363,2]
[408520524,1773817832353,-3240.0,0.00013604,2]
[408520525,1773817832364,-671.45,0.00013699,2]
[408520526,1773817832375,-200.0,0.0001409,2]
[408520533,1773817832519,-291.75733036,0.00014191,2]
[408520536,1773817832549,-4284.17622468,0.00014296,2]
[408520538,1773817832559,-150.0,0.00014301,7]
[408520540,1773817832573,-50266.58213068,0.00014304,2]
[408520542,1773817832585,-5306.8919595,0.00014304,2]
[408520545,1773817832596,-2012.78354579,0.00014304,2]
[408520547,1773817832609,-15939.67404873,0.00014304,2]
[408520551,1773817832628,-60032.7672153,0.00014304,2]
[408520554,1773817832637,-1974.4588,0.00014304,2]
[408520556,1773817832648,-27769.9799,0.00014304,2]
[408520558,1773817832657,-938.096,0.00014304,2]
[408520560,1773817832667,-68419.3045,0.00014304,2]
[408520562,1773817832677,-166.66,0.00014321,2]
[408520564,1773817832686,-153.40261559,0.00014356,2]
[408520566,1773817832695,-9716.15119071,0.00014356,2]
[408520568,1773817832704,-671.45,0.00014384,2]
[408520570,1773817832713,-5576.53877435,0.00014394,2]
[408520572,1773817832723,-151.0,0.00014396,2]
[408520574,1773817832732,-151.0,0.00014396,2]
[408520576,1773817832741,-151.0,0.00014396,2]
[408520577,1773817832750,-268.57670729,0.00014396,2]
[408520578,1773817832760,-151.0,0.00014396,2]
[408520579,1773817832769,-151.0,0.00014396,2]
[408520580,1773817832778,-151.0,0.00014396,2]
[408520581,1773817832788,-151.0,0.00014396,2]
[408520582,1773817832797,-151.0,0.00014396,2]
[408520583,1773817832807,-151.0,0.00014396,2]
[408520584,1773817832818,-151.0,0.00014396,2]
[408520585,1773817832827,-151.0,0.00014396,2]
[408520586,1773817832836,-151.0,0.00014396,2]
[408520587,1773817832845,-151.0,0.00014396,2]
[408520588,1773817832855,-151.0,0.00014396,2]
[408520589,1773817832864,-151.0,0.00014396,2]
[408520590,1773817832873,-151.0,0.00014396,2]
[408520591,1773817832883,-151.0,0.00014396,2]
[408520592,1773817832893,-151.0,0.00014396,2]
[408520593,1773817832903,-151.0,0.00014401,2]
[408520594,1773817832912,-151.0,0.00014401,2]
[408520595,1773817832922,-259.82094409,0.00014456,2]
[408520596,1773817832931,-500.0,0.00014456,2]
[408520597,1773817832941,-800.0,0.00014456,2]
[408520598,1773817832950,-900.0,0.00014456,2]
[408520599,1773817832960,-500.0,0.00014498,2]
[408520600,1773817832969,-500.0,0.00014498,2]
[408520601,1773817832978,-500.0,0.00014498,2]
[408520602,1773817832987,-500.0,0.00014498,2]
[408520603,1773817832997,-500.0,0.00014498,2]
[408520604,1773817833006,-500.0,0.00014498,2]
[408520605,1773817833015,-500.0,0.00014498,2]
[408520606,1773817833024,-500.0,0.00014498,2]
[408520607,1773817833033,-500.0,0.00014498,2]
[408520608,1773817833043,-500.0,0.00014498,2]
[408520609,1773817833053,-500.0,0.00014498,2]
[408520610,1773817833062,-500.0,0.00014498,2]
[408520611,1773817833072,-500.0,0.00014498,2]
[408520612,1773817833081,-500.0,0.00014498,2]
[408520613,1773817833091,-500.0,0.00014498,2]
[408520614,1773817833100,-500.0,0.00014498,2]
[408520615,1773817833109,-500.0,0.00014498,2]
[408520616,1773817833118,-500.0,0.00014498,2]
[408520617,1773817833128,-500.0,0.00014498,2]
[408520618,1773817833137,-500.0,0.00014498,2]
[408520619,1773817833156,-539.77728066,0.00014498,2]
[408520620,1773817833173,-500.0,0.00014498,2]
[408520621,1773817833192,-500.0,0.00014498,2]
[408520622,1773817833211,-500.0,0.00014498,2]
[408520623,1773817833227,-500.0,0.00014498,2]
[408520624,1773817833244,-500.0,0.00014498,2]
[408520625,1773817833263,-316.56332864,0.00014498,2]
[408520626,1773817833283,-500.0,0.00014498,2]
[408520627,1773817833303,-500.0,0.00014498,2]
[408520628,1773817833322,-11950.54814813,0.00014499,2]
[408520629,1773817833340,-1000.0,0.00014499,2]
[408520630,1773817833360,-150.99,0.00014504,2]
[408520631,1773817833373,-9999.99,0.00014504,2]
[408520632,1773817833392,-166.66,0.00014622,2]
[408520633,1773817833407,-571.2987718,0.00014689,2]
[408520634,1773817833423,-4284.17622462,0.00014696,2]
[408520635,1773817833439,-9716.15119071,0.0001475,2]
[408520636,1773817833453,-1208.58,0.00014789,2]
[408520637,1773817833470,-1208.58,0.00014789,2]
[408520638,1773817833485,-1241.86926421,0.00014861,2]
[408520639,1773817833501,-166.66,0.00014924,2]
[408520640,1773817833517,-250.0,0.00015,2]
[408520641,1773817833531,-155.74,0.00015068,2]
[408520642,1773817833546,-671.45,0.00015068,2]
[408520643,1773817833561,-4284.17622462,0.00015097,2]
[408520644,1773817833578,-9716.15119071,0.00015144,2]
[408520645,1773817833593,-8882.6885148,0.00015214,2]
[408520646,1773817833607,-267.18668564,0.00015214,2]
[408520647,1773817833622,-151.0,0.00015214,2]
[408520648,1773817833637,-156.587,0.00015214,2]
[408520649,1773817833653,-194.04822186,0.00015214,2]
[408520650,1773817833668,-210.31364022,0.00015214,2]
[408520651,1773817833683,-500.0,0.00015214,2]
[408520652,1773817833698,-500.0,0.00015214,2]
[408520653,1773817833713,-500.0,0.00015214,2]
[408520654,1773817833728,-500.0,0.00015214,2]
[408520655,1773817833743,-500.0,0.00015214,2]
[408520656,1773817833758,-500.0,0.00015214,2]
[408520657,1773817833771,-500.0,0.00015214,2]
[408520658,1773817833787,-500.0,0.00015214,2]
[408520659,1773817833801,-260.4103811,0.00015214,2]
[408520660,1773817833817,-595.83804272,0.00015214,2]
[408520661,1773817833831,-166.66,0.00015225,2]
[408520662,1773817833846,-3286.84026713,0.00015269,2]
[408520663,1773817833864,-410.55372032,0.00015269,2]
[408520664,1773817833884,-299.16418043,0.00015269,2]
[408520665,1773817833908,-536.4318512,0.00015269,2]
[408520666,1773817836120,150.0,0.00022816,120]
[408520667,1773817836479,210.39,0.00024209,120]
[408520668,1773817836839,315.58,0.00025601,120]
[408520669,1773817837198,420.77,0.00026994,120]
[408520670,1773817837567,525.97,0.00028386,120]
[408520671,1773817837937,631.16,0.00029779,120]
[408520672,1773817838415,-705.08425005,0.00015269,2]
[408520673,1773817838486,-3973.27372072,0.00015269,2]
[408520674,1773817838497,-125.35762874,0.00015324,2]
[408520675,1773817838508,-703.44473608,0.00015324,2]
[408520676,1773817838519,-2000.65760226,0.00015324,2]
[408520677,1773817838530,-1327.485,0.00015324,2]
[408520678,1773817838603,-5395.22289839,0.00015324,2]
[408520679,1773817838615,-197.86840182,0.0001537,2]
[408520680,1773817838626,-3735.92959033,0.00015379,2]
[408520681,1773817838635,-4284.17622462,0.00015497,2]
[408520682,1773817838645,-1258.0,0.00015511,2]
[408520683,1773817838655,-166.66,0.00015527,2]
[408520684,1773817838664,-9716.15119071,0.00015537,2]
[408520685,1773817838673,-1208.58,0.00015623,2]
[408520686,1773817838683,-3757.0,0.00015641,2]
[408520687,1773817838692,-2465.0,0.00015641,2]
[408520688,1773817838701,-671.45,0.00015753,2]
[408520689,1773817838710,-270.0455652,0.00015762,2]
[408520690,1773817838719,-800.0,0.00015826,2]
[408520692,1773817838729,-900.0,0.00015826,2]
[408520694,1773817838738,-166.66,0.00015828,2]
[408520695,1773817838747,-2738.15,0.00015872,2]
[408520696,1773817838757,-4284.17622462,0.00015898,2]
[408520697,1773817838766,-500.0,0.00015917,2]
[408520698,1773817838775,-500.0,0.00015917,2]
[408520699,1773817838785,-500.0,0.00015917,2]
[408520701,1773817838794,-500.0,0.00015917,2]
[408520703,1773817838804,-320.21633344,0.00015917,2]
[408520704,1773817838813,-500.0,0.00015917,2]
[408520706,1773817838822,-500.0,0.00015917,2]
[408520708,1773817838831,-500.0,0.00015917,2]
[408520710,1773817838840,-500.0,0.00015917,2]
[408520711,1773817838850,-500.0,0.00015917,2]
[408520712,1773817838859,-500.0,0.00015917,2]
[408520713,1773817838868,-500.0,0.00015917,2]
[408520714,1773817838878,-500.0,0.00015917,2]
[408520715,1773817838887,-500.0,0.00015917,2]
[408520716,1773817838897,-500.0,0.00015917,2]
[408520717,1773817838906,-151.0,0.00015917,2]
[408520718,1773817838916,-3508.6437695,0.00015918,2]
[408520719,1773817838925,-3035.951989,0.00015918,2]
[408520720,1773817838935,-167.7953477,0.00015918,2]
[408520721,1773817838945,-3348.0019106,0.00015918,2]
[408520722,1773817838955,-26546.46408129,0.00015918,2]
[408520745,1773817846349,-500.0,0.00014498,2]
[408520746,1773817846371,-195.83,0.00015902,2]
[408520747,1773817846388,-92.0659738,0.00015918,2]
[408520748,1773817846585,-44111.79423421,0.00015918,2]
[408520749,1773817846596,-151.0,0.00015918,2]
[408520751,1773817846606,-151.0,0.00015918,2]
[408520754,1773817846621,-414.0,0.0001592,2]
[408520756,1773817846633,-9716.15119071,0.00015931,2]
[408520759,1773817846644,-1220.29,0.00015945,2]
[408520761,1773817846658,-2522.3237547,0.0001596,2]
[408520763,1773817846669,-500.0,0.00015971,2]
[408520766,1773817846680,-361.7214811,0.00015986,2]
[408520767,1773817846700,-268.72609511,0.00015999,5]
[408520768,1773817846712,-2736.53,0.00016017,2]
[408520769,1773817846722,-168.0,0.00016031,2]
[408520770,1773817846732,-1208.58,0.00016099,2]
[408520771,1773817846743,-420246.41834762,0.000161,2]
[408520772,1773817846755,-43668.94752174,0.000161,2]
[408520773,1773817876356,150.0,0.0002284,120]
[408520774,1773817877295,185.8,0.00024234,120]
[408520775,1773817877461,278.7,0.00025628,120]
[408520776,1773817877740,371.6,0.00027022,120]
[408520777,1773817877857,464.5,0.00028416,120]
[408520778,1773817878239,557.4,0.0002981,120]
[408520779,1773817910150,150.0,0.0002284,120]
[408520780,1773817910526,163.89,0.00024234,120]
[408520781,1773817911051,245.84,0.00025628,120]
[408520782,1773817911456,327.79,0.00027022,120]
[408520783,1773817911876,409.73,0.00028416,120]
[408520784,1773817912268,491.68,0.0002981,120]
[408520785,1773817948242,150.0,0.00022818,120]
[408520786,1773817948621,150.0,0.00024211,120]
[408520787,1773817949022,216.57,0.00025603,120]
[408520788,1773817949456,288.76,0.00026996,120]
[408520789,1773817949814,360.94,0.00028389,120]
[408520790,1773817950181,433.13,0.00029781,120]
[408520791,1773817982621,150.0,0.00022856,120]
[408520792,1773817983018,150.0,0.00024251,120]
[408520793,1773817983393,190.39,0.00025646,120]
[408520794,1773817983762,253.86,0.00027041,120]
[408520795,1773817987974,317.32,0.00028436,120]
[408520796,1773817988371,380.79,0.00029831,120]
[408520797,1773818042330,150.0,0.00022793,120]
[408520798,1773818042711,150.0,0.00024184,120]
[408520799,1773818043107,166.79,0.00025575,120]
[408520800,1773818043501,222.39,0.00026966,120]
[408520801,1773818043872,277.99,0.00028357,120]
[408520802,1773818044239,333.59,0.00029748,120]
[408520803,1773818079298,150.0,0.00022797,120]
[408520804,1773818079687,150.0,0.00024188,120]
[408520805,1773818080068,150.0,0.0002558,120]
[408520806,1773818080446,194.01,0.00026971,120]
[408520807,1773818080798,242.51,0.00028363,120]
[408520808,1773818081174,291.01,0.00029754,120]
[408520809,1773818111644,-1390.07465626,0.00014104,2]
[408520810,1773818111760,-5000.01,0.00014104,2]
[408520811,1773818111790,-273.99193668,0.00014104,2]
[408520812,1773818111808,-1200.0,0.00014203,2]
[408520813,1773818111822,-150.0,0.00014203,2]
[408520814,1773818113343,150.0,0.000228,120]
[408520815,1773818113721,150.0,0.00024191,120]
[408520816,1773818114223,150.0,0.00025583,120]
[408520817,1773818115513,168.32,0.00026974,120]
[408520818,1773818115883,210.4,0.00028366,120]
[408520819,1773818116270,252.48,0.00029757,120]
[408520820,1773818119386,500.0,0.00014203,2]
[408520821,1773818119435,500.0,0.00014203,2]
[408520822,1773818119513,500.0,0.00014203,2]
[408520823,1773818119563,500.0,0.00014203,2]
[408520824,1773818119602,500.0,0.00014203,2]
[408520825,1773818119656,500.0,0.00014203,2]
[408520826,1773818119694,500.0,0.00014203,2]
[408520827,1773818119779,617.18093498,0.00014203,2]
[408520828,1773818119820,500.0,0.00014203,2]
[408520829,1773818119879,382.82906502,0.00014203,2]
[408520830,1773818119908,117.17093498,0.00014203,2]
[408520831,1773818119943,500.0,0.00014203,2]
[408520832,1773818119976,500.0,0.00014203,2]
[408520833,1773818120017,500.0,0.00014203,2]
[408520834,1773818120051,500.0,0.00014203,2]
[408520835,1773818120104,500.0,0.00014203,2]
[408520836,1773818120152,500.0,0.00014203,2]
[408520837,1773818120200,500.0,0.00014203,2]
[408520838,1773818120260,500.0,0.00014203,2]
[408520839,1773818120321,500.0,0.00014203,2]
[408520840,1773818120424,382.83906502,0.00014203,2]
[408520841,1773818120450,117.16093498,0.00014203,2]
[408520842,1773818120481,500.0,0.00014203,2]
[408520843,1773818120536,500.0,0.00014203,2]
[408520844,1773818120581,500.0,0.00014203,2]
[408520845,1773818134300,166.6,0.00013764,2]
[408520846,1773818135353,500.0,0.00014203,2]
[408520847,1773818135393,500.0,0.00014203,2]
[408520848,1773818135431,500.0,0.00014203,2]
[408520849,1773818135471,500.0,0.00014203,2]
[408520850,1773818135509,500.0,0.00014203,2]
[408520851,1773818135551,500.0,0.00014203,2]
[408520852,1773818147304,150.0,0.00022795,120]
[408520853,1773818147554,150.0,0.00024187,120]
[408520854,1773818147917,150.0,0.00025578,120]
[408520855,1773818148302,150.0,0.00026969,120]
[408520856,1773818148677,180.91,0.0002836,120]
[408520857,1773818149046,217.09,0.00029752,120]
[408520858,1773818158062,216.24906502,0.00014204,2]
[408520859,1773818158084,214.00361789,0.00014204,2]
[408520860,1773818161574,300.0,0.00014203,2]
[408520863,1773818185109,150.0,0.00022792,120]
[408520864,1773818185483,150.0,0.00024183,120]
[408520865,1773818185853,150.0,0.00025574,120]
[408520866,1773818186220,150.0,0.00026965,120]
[408520867,1773818186632,153.69,0.00028356,120]
[408520868,1773818187012,184.43,0.00029747,120]
[408520869,1773818190946,1725.38342843,0.00014104,2]
[408520870,1773818192209,500.0,0.00014204,2]
[408520871,1773818203586,158.9403,0.00014103,2]
[408520872,1773818216621,150.0,0.00022791,120]
[408520873,1773818217002,150.0,0.00024182,120]
[408520874,1773818217367,150.0,0.00025573,120]
[408520875,1773818217786,150.0,0.00026964,120]
[408520876,1773818218153,150.0,0.00028355,120]
[408520877,1773818218529,153.73,0.00029746,120]
[408520878,1773818228848,1002.07601724,0.00014203,2]
[408520879,1773818246430,153.7981562,0.00014204,2]
[408520880,1773818246731,150.0,0.00022759,120]
[408520881,1773818247136,150.0,0.00024148,120]
[408520882,1773818247504,150.0,0.00025537,120]
[408520883,1773818247889,150.0,0.00026926,120]
[408520884,1773818248281,150.0,0.00028315,120]
[408520885,1773818248644,150.0,0.00029704,120]
[408520886,1773818252915,945.80848024,0.00014104,2]
[408520887,1773818252957,3749.51178537,0.00014104,2]
[408520888,1773818257123,500.0,0.00014204,2]
[408520889,1773818260176,500.0,0.00014203,2]
[408520890,1773818260279,250.49821463,0.00014203,2]
[408520891,1773818260305,249.50178537,0.00014203,2]
[408520892,1773818260540,425.72973493,0.00014203,2]
[408520893,1773818282155,150.0,0.00014203,2]
[408520894,1773818282532,300.0,0.00014203,2]
[408520895,1773818285930,2158.0955,0.00014104,2]
[408520896,1773818301547,150.0,0.00022854,120]
[408520897,1773818301955,150.0,0.00024249,120]
[408520898,1773818302313,150.0,0.00025644,120]
[408520899,1773818302709,150.0,0.00027039,120]
[408520903,1773818330693,150.0,0.00022844,120]
[408520904,1773818331238,150.0,0.00024239,120]
[408520905,1773818341245,300.0,0.00014203,2]
[408520906,1773818357941,150.0,0.00022853,120]
[408520907,1773818384575,500.0,0.00014203,2]
[408520908,1773818394832,500.0,0.00014203,2]
[408520909,1773818401144,235.14543036,0.00019152,120]
[408520910,1773818401201,416.6829797,0.00014203,2]
[408520911,1773818401221,783.3170203,0.00014203,2]
[408520912,1773818404194,267.0,0.00014204,2]
[408520913,1773818405866,198.51,0.00014194,2]
[408520914,1773818405934,500.0,0.00014203,2]
[408520915,1773818407266,3251.1829797,0.00014194,2]
[408520916,1773818407300,5000.01,0.00014194,2]
[408520917,1773818407333,2939.9070203,0.00014194,2]
[408520918,1773818409096,500.0,0.00014204,2]
[408520919,1773818416812,500.0,0.00014203,2]
[408520920,1773818432295,537.19747563,0.00014203,2]
[408520921,1773818434376,455.11,7.287e-05,2]
[408520922,1773818434589,67.79550407,7.671e-05,2]
[408520923,1773818434611,387.31449593,7.671e-05,2]
[408520924,1773818434784,455.11,8.054e-05,2]
[408520925,1773818435002,455.11,8.438e-05,2]
[408520926,1773818435198,455.11,8.821e-05,2]
[408520927,1773818435408,455.11,9.205e-05,2]
[408520928,1773818435618,455.11,9.588e-05,2]
[408520929,1773818435820,455.11,9.972e-05,2]
[408520930,1773818436021,455.11,0.00010355,2]
[408520931,1773818436221,455.11,0.00010739,2]
[408520932,1773818436524,455.11,0.00011123,2]
[408520933,1773818436628,455.11,0.00011506,2]
[408520934,1773818436841,61.59550407,0.0001189,2]
[408520935,1773818436868,393.51449593,0.0001189,2]
[408520936,1773818437030,455.11,0.00012273,2]
[408520937,1773818437442,455.11,0.00012657,2]
[408520938,1773818437640,455.11,0.0001304,2]
[408520939,1773818437865,455.11,0.00013424,2]
[408520940,1773818438058,455.11,0.00013807,2]
[408520941,1773818438253,455.11,0.00014191,2]
[408520942,1773818442771,281.91083062,0.00014203,2]
[408520943,1773818442801,1593.92467345,0.00014104,2]
[408520944,1773818442826,906.07532655,0.00014104,2]
[408520945,1773818461218,300.0,0.00014203,2]
[408520946,1773818462106,150.0,0.00014203,2]
[408520947,1773818477246,3643.93467345,0.00014104,2]
[408520948,1773818477269,2353.73426025,0.00014104,2]
[408520949,1773818479120,1509.71049985,0.00014104,2]
[408520950,1773818498840,2262.83,0.00030137,120]
[408520951,1773818521314,300.0,0.00014203,2]
[408520952,1773818536733,151.0,0.00014204,2]
[408520953,1773818537355,151.0,0.00014204,2]
[408520954,1773818543810,200.0,0.00014204,2]
[408520955,1773818543875,151.0,0.00014204,2]
[408520956,1773818544328,183.5652399,0.00014204,2]
[408520957,1773818544351,316.4347601,0.00014204,2]
[408520958,1773818544472,151.0,0.00014204,2]
[408520959,1773818545099,151.0,0.00014204,2]
[408520960,1773818545701,153.61478955,0.00014204,2]
[408520961,1773818556461,192.99340744,0.00014104,2]
[408520962,1773818560298,500.0,0.00014204,2]
[408520963,1773818581971,2500.0,0.00014104,2]
[408520964,1773818641205,300.0,0.00014203,2]
[408520965,1773818642086,150.0,0.00014203,2]
[408520966,1773818701169,300.0,0.00014203,2]
[408520967,1773818701201,284.96704291,0.00014203,2]
[408520968,1773818701222,915.03295709,0.00014203,2]
[408520969,1773818736451,-5000.0,0.00014204,2]
[408520970,1773818743771,2500.0,0.00014104,2]
[408520971,1773818760237,1320.99668736,0.00014104,2]
[408520972,1773818760347,-5000.0,0.00014204,2]
[408520973,1773818763173,263.98035555,0.00014104,2]
[408520974,1773818763196,4574.80552933,0.00014104,2]
[408520975,1773818778913,425.20447067,0.00014194,2]
[408520976,1773818778942,5000.01,0.00014194,2]
[408520977,1773818778963,5000.01,0.00014194,2]
[408520978,1773818778984,5000.01,0.00014194,2]
[408520979,1773818779007,5000.01,0.00014194,2]
[408520980,1773818802003,-5000.01,0.00014194,2]
[408520981,1773818804779,-428.22354805,0.00014194,2]
[408520982,1773818820783,150.0,0.00022789,120]
[408520983,1773818821148,150.0,0.0002418,120]
[408520984,1773818821516,150.0,0.00025571,120]
[408520985,1773818821895,158.5,0.00026962,120]
[408520986,1773818822601,198.13,0.00028353,120]
[408520987,1773818822646,150.0,0.00014203,2]
[408520988,1773818822717,237.75,0.00029744,120]
[408520989,1773818836789,151.0,0.00014204,2]
[408520990,1773818837398,165.99030755,0.00014204,2]
[408520991,1773818841646,321.31450988,0.00014104,2]
[408520992,1773818850152,1368.0,0.0003013,120]
[408520993,1773818850954,1333.0,0.0003013,120]
[408520994,1773818851046,273.22484241,0.00029744,120]
[408520995,1773818851750,1843.0,0.0003013,120]
[408520996,1773818852635,727.0,0.0003013,120]
[408520997,1773818853281,309.44,0.00022762,120]
[408520998,1773818854106,618.88,0.00024151,120]
[408520999,1773818854258,928.32,0.0002554,120]
[408521000,1773818854635,1237.76,0.00026929,120]
[408521001,1773818854741,481.00181675,0.0003013,120]
[408521002,1773818854802,1547.2,0.00028318,120]
[408521003,1773818855163,1856.64,0.00029708,120]
[408521004,1773818864419,-225.85826913,0.00047739,120]
[408521005,1773818864445,-1000.0,0.00047739,30]